[Event "Live Chess"]
[Site "Chess.com"]
[Date "2023.05.20"]
[Round "-"]
[White "Shepherds_Pie"]
[Black "howitzer14"]
[Result "0-1"]
[WhiteElo "1926"]
[BlackElo "2890"]
[TimeControl "300"]
[EndTime "14:06:31 PDT"]
[Termination "howitzer14 won by resignation"]

1. c4 {[%clk 0:04:54.2]} 1... b6 {[%clk 0:04:59.9]} 2. Nc3 {[%clk 0:04:49.4]}
2... Bb7 {[%clk 0:04:59.8]} 3. e4 {[%clk 0:04:47.5]} 3... e5 {[%clk 0:04:59.1]}
4. Nf3 {[%clk 0:04:45.7]} 4... Nc6 {[%clk 0:04:53]} 5. d4 {[%clk 0:04:42.6]}
5... exd4 {[%clk 0:04:52.9]} 6. Nxd4 {[%clk 0:04:41.2]} 6... Bb4 {[%clk
0:04:43.3]} 7. Be3 {[%clk 0:04:38.7]} 7... Bxc3+ {[%clk 0:04:34.7]} 8. bxc3
{[%clk 0:04:36.5]} 8... Qe7 {[%clk 0:04:34.6]} 9. f3 {[%clk 0:04:32.2]} 9...
O-O-O {[%clk 0:04:29.8]} 10. Be2 {[%clk 0:04:30.1]} 10... Kb8 {[%clk 0:04:25.7]}
11. O-O {[%clk 0:04:25.7]} 11... g6 {[%clk 0:04:24.8]} 12. a4 {[%clk 0:04:16.9]}
12... Na5 {[%clk 0:04:23]} 13. Nb5 {[%clk 0:04:13.5]} 13... d6 {[%clk
0:04:20.8]} 14. Rb1 {[%clk 0:04:08.8]} 14... f5 {[%clk 0:04:18.9]} 15. Qc2
{[%clk 0:04:03]} 15... Nf6 {[%clk 0:04:16.3]} 16. Bg5 {[%clk 0:03:59.3]} 16...
h6 {[%clk 0:04:14.9]} 17. Bxf6 {[%clk 0:03:57.6]} 17... Qxf6 {[%clk 0:04:14.8]}
18. exf5 {[%clk 0:03:54.7]} 18... gxf5 {[%clk 0:04:11.2]} 19. Nd4 {[%clk
0:03:51.5]} 19... f4 {[%clk 0:04:08.5]} 20. Qf5 {[%clk 0:03:47.4]} 20... Rhf8
{[%clk 0:04:05]} 21. Qxf6 {[%clk 0:03:45.3]} 21... Rxf6 {[%clk 0:04:04.9]} 22.
Bd3 {[%clk 0:03:41.7]} 22... Ba6 {[%clk 0:04:00.9]} 23. Nb5 {[%clk 0:03:38.2]}
23... Re8 {[%clk 0:03:57.3]} 24. Rfe1 {[%clk 0:03:36.9]} 24... Rfe6 {[%clk
0:03:56.5]} 25. Rxe6 {[%clk 0:03:35.3]} 25... Rxe6 {[%clk 0:03:56.4]} 26. Kf2
{[%clk 0:03:33.6]} 26... Re5 {[%clk 0:03:51.4]} 27. Re1 {[%clk 0:03:30.7]} 27...
Rxe1 {[%clk 0:03:46.7]} 28. Kxe1 {[%clk 0:03:28.8]} 28... Bxb5 {[%clk
0:03:46.1]} 29. cxb5 {[%clk 0:03:25.2]} 29... Kc8 {[%clk 0:03:46]} 30. g4 {[%clk
0:03:20.6]} 30... Kd7 {[%clk 0:03:41.6]} 31. h4 {[%clk 0:03:17]} 31... Ke6
{[%clk 0:03:40.9]} 32. g5 {[%clk 0:03:15.4]} 32... hxg5 {[%clk 0:03:40.8]} 33.
hxg5 {[%clk 0:03:14.3]} 33... Nb7 {[%clk 0:03:37.3]} 34. g6 {[%clk 0:03:05.9]}
34... Nc5 {[%clk 0:03:32.5]} 35. Bc2 {[%clk 0:03:04.2]} 35... Kf6 {[%clk
0:03:30.6]} 36. Kf2 {[%clk 0:03:00.1]} 36... Nd7 {[%clk 0:03:21.5]} 37. Kg2
{[%clk 0:02:50.2]} 37... Ne5 {[%clk 0:03:20.9]} 38. Kh3 {[%clk 0:02:49.3]} 38...
Kg7 {[%clk 0:02:53.1]} 39. Kh4 {[%clk 0:02:43.2]} 39... Nxf3+ {[%clk 0:02:09.7]}
40. Kg4 {[%clk 0:02:38.1]} 40... Ne1 {[%clk 0:01:58.8]} 41. Be4 {[%clk
0:02:36.8]} 41... f3 {[%clk 0:01:56.3]} 42. Kg3 {[%clk 0:02:35.8]} 42... d5
{[%clk 0:01:44.7]} 43. Bb1 {[%clk 0:02:26.9]} 43... Ng2 {[%clk 0:01:39.1]} 44.
Kxf3 {[%clk 0:02:25.7]} 44... Nh4+ {[%clk 0:01:37.8]} 45. Kg4 {[%clk 0:02:22.4]}
45... Nxg6 {[%clk 0:01:33.4]} 46. Kf5 {[%clk 0:02:21.3]} 46... Kf7 {[%clk
0:01:32.5]} 47. Bc2 {[%clk 0:02:14.8]} 47... c6 {[%clk 0:00:22.5]} 48. bxc6
{[%clk 0:02:12]} 48... Ne7+ {[%clk 0:00:22]} 49. Ke5 {[%clk 0:02:10.3]} 49...
Nxc6+ {[%clk 0:00:21.9]} 50. Kxd5 {[%clk 0:02:05.9]} 50... Na5 {[%clk
0:00:21.8]} 51. Bd3 {[%clk 0:01:59]} 51... Ke7 {[%clk 0:00:21.7]} 52. Ke5 {[%clk
0:01:53.6]} 52... Kd7 {[%clk 0:00:20.7]} 53. Bb5+ {[%clk 0:01:52]} 53... Kc7
{[%clk 0:00:20.1]} 54. Kd5 {[%clk 0:01:49.9]} 54... Nb7 {[%clk 0:00:19.5]} 55.
Kc4 {[%clk 0:01:44]} 55... Nc5 {[%clk 0:00:17.6]} 56. Kb4 {[%clk 0:01:41.7]}
56... a5+ {[%clk 0:00:16.3]} 57. Kc4 {[%clk 0:01:39.6]} 57... Kd6 {[%clk
0:00:16.2]} 58. Kd4 {[%clk 0:01:37.9]} 58... Ne6+ {[%clk 0:00:15.1]} 59. Kc4
{[%clk 0:01:33.6]} 59... Nc7 {[%clk 0:00:15]} 60. Kb3 {[%clk 0:01:14.4]} 60...
Nxb5 {[%clk 0:00:13.5]} 61. axb5 {[%clk 0:01:12.8]} 61... Kc5 {[%clk 0:00:13.4]}
62. c4 {[%clk 0:01:04.5]} 62... Kd4 {[%clk 0:00:11.7]} 63. c5 {[%clk 0:01:02.6]}
63... Kxc5 {[%clk 0:00:09.9]} 64. Ka4 {[%clk 0:01:01.7]} 64... Kc4 {[%clk
0:00:09.5]} 65. Ka3 {[%clk 0:01:00.7]} 65... Kxb5 {[%clk 0:00:09.4]} 66. Kb3
{[%clk 0:01:00]} 66... a4+ {[%clk 0:00:09.3]} 67. Ka3 {[%clk 0:00:59.4]} 67...
Ka5 {[%clk 0:00:09.2]} 68. Kb2 {[%clk 0:00:58.3]} 68... b5 {[%clk 0:00:09.1]}
69. Kc3 {[%clk 0:00:57.4]} 69... b4+ {[%clk 0:00:09]} 70. Kc4 {[%clk 0:00:56.6]}
70... a3 {[%clk 0:00:08.1]} 71. Kb3 {[%clk 0:00:55.6]} 71... Kb5 {[%clk
0:00:08]} 72. Ka2 {[%clk 0:00:54.5]} 72... Ka4 {[%clk 0:00:07.9]} 73. Kb1 {[%clk
0:00:53.4]} 73... b3 {[%clk 0:00:07.8]} 74. Kc1 {[%clk 0:00:52.1]} 74... Kb4
{[%clk 0:00:07.7]} 75. Kd2 {[%clk 0:00:51.2]} 75... a2 {[%clk 0:00:06.7]} 76.
Kd3 {[%clk 0:00:50.3]} 76... a1=Q {[%clk 0:00:06.4]} 77. Ke3 {[%clk 0:00:49]}
77... Qc3+ {[%clk 0:00:06.3]} 78. Ke4 {[%clk 0:00:48.4]} 78... b2 {[%clk
0:00:05.9]} 79. Kd5 {[%clk 0:00:47.3]} 79... b1=Q {[%clk 0:00:05.8]} 80. Kd6
{[%clk 0:00:46.4]} 80... Qbb2 {[%clk 0:00:05.7]} 81. Ke6 {[%clk 0:00:45.4]}
81... Qbd2 {[%clk 0:00:05.6]} 0-1

[Event "Live Chess"]
[Site "Chess.com"]
[Date "2023.05.20"]
[Round "-"]
[White "jennybobby44"]
[Black "BostonStrangler"]
[Result "0-1"]
[WhiteElo "1847"]
[BlackElo "2059"]
[TimeControl "300"]
[EndTime "14:06:33 PDT"]
[Termination "BostonStrangler won by resignation"]

1. Nf3 {[%clk 0:04:59.1]} 1... g6 {[%clk 0:04:58]} 2. g3 {[%clk 0:04:57.9]} 2...
Bg7 {[%clk 0:04:56.6]} 3. Bg2 {[%clk 0:04:57.2]} 3... c5 {[%clk 0:04:55.7]} 4.
O-O {[%clk 0:04:55.2]} 4... Nc6 {[%clk 0:04:54.4]} 5. e4 {[%clk 0:04:54.3]} 5...
d6 {[%clk 0:04:52.7]} 6. c3 {[%clk 0:04:53.5]} 6... e5 {[%clk 0:04:50.4]} 7. d3
{[%clk 0:04:48.8]} 7... Nge7 {[%clk 0:04:48.7]} 8. Be3 {[%clk 0:04:46.5]} 8...
O-O {[%clk 0:04:45.3]} 9. d4 {[%clk 0:04:41.6]} 9... b6 {[%clk 0:04:39.2]} 10.
h3 {[%clk 0:04:32.4]} 10... Ba6 {[%clk 0:04:35.9]} 11. Re1 {[%clk 0:04:31.6]}
11... Rc8 {[%clk 0:04:31.4]} 12. dxe5 {[%clk 0:04:01]} 12... Nxe5 {[%clk
0:04:26.9]} 13. Nxe5 {[%clk 0:04:00]} 13... dxe5 {[%clk 0:04:26.2]} 14. Na3
{[%clk 0:03:51.5]} 14... Nc6 {[%clk 0:04:15.9]} 15. Qxd8 {[%clk 0:03:30.2]}
15... Rfxd8 {[%clk 0:04:12.7]} 16. Rad1 {[%clk 0:03:28.9]} 16... Rxd1 {[%clk
0:04:04.8]} 17. Rxd1 {[%clk 0:03:27.7]} 17... Rd8 {[%clk 0:04:04.5]} 18. Rxd8+
{[%clk 0:03:26.1]} 18... Nxd8 {[%clk 0:04:04.4]} 19. Bf1 {[%clk 0:03:24.6]}
19... Bb7 {[%clk 0:03:56.8]} 20. f3 {[%clk 0:03:23.2]} 20... f5 {[%clk
0:03:54.5]} 21. Bd3 {[%clk 0:03:16.6]} 21... fxe4 {[%clk 0:03:46.2]} 22. Bxe4
{[%clk 0:03:15.7]} 22... Bxe4 {[%clk 0:03:41.3]} 23. fxe4 {[%clk 0:03:15.6]}
23... Kf7 {[%clk 0:03:36]} 24. Nb5 {[%clk 0:03:13.6]} 24... a6 {[%clk
0:03:26.2]} 25. Nc7 {[%clk 0:03:12.4]} 25... a5 {[%clk 0:03:25.1]} 26. Nd5
{[%clk 0:03:11.5]} 26... Nb7 {[%clk 0:03:17.4]} 27. Nxb6 {[%clk 0:03:08.2]}
27... Nd6 {[%clk 0:03:16.4]} 28. Nc4 {[%clk 0:02:33]} 28... Nxc4 {[%clk
0:03:13]} 0-1

[Event "Live Chess"]
[Site "Chess.com"]
[Date "2023.05.20"]
[Round "-"]
[White "LL220284LL"]
[Black "JoeRoot66"]
[Result "0-1"]
[WhiteElo "2376"]
[BlackElo "1917"]
[TimeControl "300"]
[EndTime "14:06:40 PDT"]
[Termination "JoeRoot66 won by resignation"]

1. Nf3 {[%clk 0:04:58.9]} 1... Nf6 {[%clk 0:04:58.8]} 2. e3 {[%clk 0:04:58.5]}
2... d5 {[%clk 0:04:55.5]} 3. b3 {[%clk 0:04:57.7]} 3... Bf5 {[%clk 0:04:50.1]}
4. Bb2 {[%clk 0:04:56.8]} 4... e6 {[%clk 0:04:49.6]} 5. Be2 {[%clk 0:04:55.7]}
5... Be7 {[%clk 0:04:46.7]} 6. O-O {[%clk 0:04:54.3]} 6... c5 {[%clk 0:04:46.1]}
7. d4 {[%clk 0:04:53.3]} 7... cxd4 {[%clk 0:04:43.2]} 8. Nxd4 {[%clk 0:04:53.2]}
8... Bg6 {[%clk 0:04:41.8]} 9. Nd2 {[%clk 0:04:52.8]} 9... Nc6 {[%clk
0:04:40.9]} 10. c4 {[%clk 0:04:51.8]} 10... O-O {[%clk 0:04:38]} 11. cxd5 {[%clk
0:04:50.5]} 11... Nxd5 {[%clk 0:04:35.8]} 12. Nxc6 {[%clk 0:04:49.5]} 12... bxc6
{[%clk 0:04:34.3]} 13. Nc4 {[%clk 0:04:49.4]} 13... Bf6 {[%clk 0:04:32.5]} 14.
Bxf6 {[%clk 0:04:47.4]} 14... Qxf6 {[%clk 0:04:25.8]} 15. Rc1 {[%clk 0:04:46.8]}
15... Rfd8 {[%clk 0:04:24.3]} 16. Qe1 {[%clk 0:04:45.2]} 16... Rac8 {[%clk
0:04:12.1]} 17. Bf3 {[%clk 0:04:44.1]} 17... e5 {[%clk 0:04:03.5]} 18. Qa5
{[%clk 0:04:39.1]} 18... Bd3 {[%clk 0:03:51.7]} 19. Rfd1 {[%clk 0:04:37.1]}
19... e4 {[%clk 0:03:33.1]} 20. Bg4 {[%clk 0:04:35.9]} 20... Rc7 {[%clk
0:03:20.7]} 21. Nb2 {[%clk 0:04:34.8]} 21... Qxb2 {[%clk 0:03:16.5]} 22. h4
{[%clk 0:04:29]} 22... g6 {[%clk 0:03:07.1]} 23. h5 {[%clk 0:04:27.7]} 23... f5
{[%clk 0:03:05.7]} 24. Bh3 {[%clk 0:04:24.9]} 24... Rdc8 {[%clk 0:02:29.8]} 25.
hxg6 {[%clk 0:04:18.6]} 25... hxg6 {[%clk 0:02:29.7]} 26. Qc5 {[%clk 0:04:16.4]}
26... Qf6 {[%clk 0:02:15.5]} 27. b4 {[%clk 0:04:12]} 27... Kg7 {[%clk
0:02:06.6]} 28. b5 {[%clk 0:04:09.9]} 28... cxb5 {[%clk 0:01:59.6]} 29. Qxd5
{[%clk 0:04:05.2]} 29... Rxc1 {[%clk 0:01:57.7]} 30. Rxc1 {[%clk 0:04:05.1]}
30... Rxc1+ {[%clk 0:01:56.5]} 31. Kh2 {[%clk 0:04:05]} 31... Rc6 {[%clk
0:01:47.8]} 32. Qd7+ {[%clk 0:04:03.6]} 32... Kh6 {[%clk 0:01:44]} 33. Qe8
{[%clk 0:03:59]} 33... Qd6+ {[%clk 0:01:31.6]} 34. g3 {[%clk 0:03:57.4]} 34...
Kg7 {[%clk 0:01:26.6]} 35. Kg2 {[%clk 0:03:53.9]} 35... Rc1 {[%clk 0:01:18.4]}
36. Kh2 {[%clk 0:03:51.6]} 36... Bf1 {[%clk 0:01:12.1]} 37. Bxf5 {[%clk
0:03:48.6]} 37... gxf5 {[%clk 0:01:04.1]} 38. a4 {[%clk 0:03:47.2]} 38... Qh6+
{[%clk 0:01:02.7]} 39. Kg1 {[%clk 0:03:46.1]} 39... Be2+ {[%clk 0:00:56.5]} 0-1

[Event "Live Chess"]
[Site "Chess.com"]
[Date "2023.05.20"]
[Round "-"]
[White "OSmith06"]
[Black "PaulHumphreys"]
[Result "1-0"]
[WhiteElo "1650"]
[BlackElo "1360"]
[TimeControl "300"]
[EndTime "14:06:45 PDT"]
[Termination "OSmith06 won on time"]

1. e4 {[%clk 0:04:58.3]} 1... e6 {[%clk 0:04:58.5]} 2. d4 {[%clk 0:04:57.1]}
2... d5 {[%clk 0:04:57.3]} 3. Nd2 {[%clk 0:04:56.7]} 3... dxe4 {[%clk
0:04:54.8]} 4. Nxe4 {[%clk 0:04:56.6]} 4... Nd7 {[%clk 0:04:52.4]} 5. Nf3 {[%clk
0:04:55.4]} 5... Ngf6 {[%clk 0:04:51.8]} 6. Nxf6+ {[%clk 0:04:52.2]} 6... Nxf6
{[%clk 0:04:50.3]} 7. Bd3 {[%clk 0:04:50.7]} 7... c5 {[%clk 0:04:44]} 8. c3
{[%clk 0:04:50.1]} 8... cxd4 {[%clk 0:04:40.9]} 9. Nxd4 {[%clk 0:04:49.3]} 9...
Bd7 {[%clk 0:04:35.6]} 10. O-O {[%clk 0:04:45.7]} 10... Bc5 {[%clk 0:04:32.9]}
11. Be3 {[%clk 0:04:42.9]} 11... Bxd4 {[%clk 0:04:24.3]} 12. Bxd4 {[%clk
0:04:42.8]} 12... Bc6 {[%clk 0:04:23.3]} 13. Re1 {[%clk 0:04:20.7]} 13... O-O
{[%clk 0:04:20.3]} 14. Qc2 {[%clk 0:04:14.8]} 14... Qd5 {[%clk 0:04:17.9]} 15.
f3 {[%clk 0:04:05.4]} 15... Qg5 {[%clk 0:04:06.2]} 16. Bxf6 {[%clk 0:03:58.3]}
16... gxf6 {[%clk 0:03:57]} 17. Bxh7+ {[%clk 0:03:51.2]} 17... Kh8 {[%clk
0:03:56.2]} 18. Be4 {[%clk 0:03:48.9]} 18... Rg8 {[%clk 0:03:49.6]} 19. Bxc6
{[%clk 0:03:43.6]} 19... bxc6 {[%clk 0:03:47.6]} 20. Re2 {[%clk 0:03:31.2]}
20... Rad8 {[%clk 0:03:32]} 21. Rd1 {[%clk 0:03:23]} 21... Rd5 {[%clk 0:03:28]}
22. Rxd5 {[%clk 0:03:17]} 22... cxd5 {[%clk 0:03:26.7]} 23. Qd2 {[%clk
0:03:13.5]} 23... Qh5 {[%clk 0:03:14.5]} 24. g4 {[%clk 0:03:02.8]} 24... Qh3
{[%clk 0:03:06]} 25. Qf4 {[%clk 0:02:54.5]} 25... Rg5 {[%clk 0:03:01.8]} 26.
Qxf6+ {[%clk 0:02:50.2]} 26... Rg7 {[%clk 0:02:56.7]} 27. Qf4 {[%clk 0:02:35.6]}
27... Rh7 {[%clk 0:02:47.6]} 28. Qg3 {[%clk 0:02:25.3]} 28... Qh6 {[%clk
0:02:44.8]} 29. Qe1 {[%clk 0:02:15]} 29... Qf4 {[%clk 0:02:36.9]} 30. Qg3 {[%clk
0:02:08]} 30... Qc1+ {[%clk 0:02:29.2]} 31. Kf2 {[%clk 0:02:04.6]} 31... Qg5
{[%clk 0:02:19.9]} 32. Qe5+ {[%clk 0:02:01.7]} 32... Qxe5 {[%clk 0:02:12.5]} 33.
Rxe5 {[%clk 0:02:00.3]} 33... Rxh2+ {[%clk 0:02:11]} 34. Ke3 {[%clk 0:01:55.1]}
34... Rxb2 {[%clk 0:02:09.3]} 35. Rh5+ {[%clk 0:01:47]} 35... Kg7 {[%clk
0:02:06.5]} 36. a4 {[%clk 0:01:34]} 36... Ra2 {[%clk 0:02:04.1]} 37. c4 {[%clk
0:01:30.2]} 37... Ra3+ {[%clk 0:01:54.7]} 38. Kd4 {[%clk 0:01:26.1]} 38... dxc4
{[%clk 0:01:51]} 39. Kxc4 {[%clk 0:01:20.1]} 39... Rxa4+ {[%clk 0:01:49.7]} 40.
Kb5 {[%clk 0:01:17.4]} 40... Ra3 {[%clk 0:01:47.7]} 41. f4 {[%clk 0:01:12.1]}
41... a5 {[%clk 0:01:45.5]} 42. Rg5+ {[%clk 0:01:05.7]} 42... Kf6 {[%clk
0:01:40.2]} 43. Rh5 {[%clk 0:01:00.1]} 43... Rf3 {[%clk 0:01:36.4]} 44. Kxa5
{[%clk 0:00:51]} 44... Rxf4 {[%clk 0:01:35.3]} 45. g5+ {[%clk 0:00:46.1]} 45...
Ke7 {[%clk 0:01:34.1]} 46. Kb5 {[%clk 0:00:43.9]} 46... Rf5+ {[%clk 0:01:26.9]}
47. Kc4 {[%clk 0:00:41]} 47... Kd6 {[%clk 0:01:17.6]} 48. Kd4 {[%clk 0:00:36.9]}
48... Rf4+ {[%clk 0:01:14.4]} 49. Ke3 {[%clk 0:00:35.5]} 49... e5 {[%clk
0:01:09.6]} 50. Rh6+ {[%clk 0:00:28.4]} 50... Kd5 {[%clk 0:01:06.4]} 51. Rh7
{[%clk 0:00:23.5]} 51... Ke6 {[%clk 0:00:59.7]} 52. Rh6+ {[%clk 0:00:21.4]}
52... Kf5 {[%clk 0:00:58.3]} 53. Rf6+ {[%clk 0:00:19.4]} 53... Kxg5 {[%clk
0:00:55.9]} 54. Ra6 {[%clk 0:00:16.6]} 54... f5 {[%clk 0:00:51.1]} 55. Ra8
{[%clk 0:00:15.5]} 55... Kh4 {[%clk 0:00:46.4]} 56. Rh8+ {[%clk 0:00:14.7]}
56... Kg3 {[%clk 0:00:45.4]} 57. Rg8+ {[%clk 0:00:14.2]} 57... Rg4 {[%clk
0:00:44.2]} 58. Rf8 {[%clk 0:00:12.9]} 58... f4+ {[%clk 0:00:40.9]} 59. Ke4
{[%clk 0:00:12.4]} 59... Rg5 {[%clk 0:00:37.1]} 60. Rh8 {[%clk 0:00:10.4]} 60...
f3 {[%clk 0:00:34.2]} 61. Rf8 {[%clk 0:00:09.4]} 61... f2 {[%clk 0:00:31.9]} 62.
Ke3 {[%clk 0:00:08.9]} 62... Kg2 {[%clk 0:00:24.4]} 63. Rxf2+ {[%clk 0:00:08.1]}
63... Kg3 {[%clk 0:00:20.6]} 64. Rf3+ {[%clk 0:00:07.6]} 64... Kg4 {[%clk
0:00:19.1]} 65. Rf1 {[%clk 0:00:06.4]} 65... Rf5 {[%clk 0:00:16]} 66. Rg1+
{[%clk 0:00:05.1]} 66... Kh5 {[%clk 0:00:07.8]} 67. Ke4 {[%clk 0:00:04.8]} 1-0

[Event "Live Chess"]
[Site "Chess.com"]
[Date "2023.05.20"]
[Round "-"]
[White "Greenbecker"]
[Black "Reggie016"]
[Result "1-0"]
[WhiteElo "1657"]
[BlackElo "1069"]
[TimeControl "300"]
[EndTime "14:06:49 PDT"]
[Termination "Greenbecker won by resignation"]

1. e4 {[%clk 0:04:57.7]} 1... e6 {[%clk 0:04:59]} 2. d4 {[%clk 0:04:55.7]} 2...
d5 {[%clk 0:04:58.4]} 3. exd5 {[%clk 0:04:54.4]} 3... exd5 {[%clk 0:04:56.9]} 4.
Nf3 {[%clk 0:04:53.9]} 4... c5 {[%clk 0:04:55.8]} 5. c3 {[%clk 0:04:51.9]} 5...
Nf6 {[%clk 0:04:53]} 6. Bb5+ {[%clk 0:04:49.8]} 6... Bd7 {[%clk 0:04:51.3]} 7.
Bxd7+ {[%clk 0:04:48.2]} 7... Nbxd7 {[%clk 0:04:49.9]} 8. O-O {[%clk 0:04:47.1]}
8... Be7 {[%clk 0:04:48.1]} 9. Re1 {[%clk 0:04:46.5]} 9... O-O {[%clk
0:04:46.9]} 10. dxc5 {[%clk 0:04:44.9]} 10... Bxc5 {[%clk 0:04:45.1]} 11. Bg5
{[%clk 0:04:44.3]} 11... Qb6 {[%clk 0:04:40.9]} 12. Be3 {[%clk 0:04:37.9]} 12...
Bxe3 {[%clk 0:04:34.5]} 13. Rxe3 {[%clk 0:04:35]} 13... Qxb2 {[%clk 0:04:29.4]}
14. Nbd2 {[%clk 0:04:32.4]} 14... Qa3 {[%clk 0:03:59.9]} 15. c4 {[%clk
0:04:28.2]} 15... Qd6 {[%clk 0:03:49.2]} 16. cxd5 {[%clk 0:04:25]} 16... Qxd5
{[%clk 0:03:43.1]} 17. Rb3 {[%clk 0:04:12.1]} 17... b6 {[%clk 0:03:36.9]} 18.
Rc1 {[%clk 0:04:02.5]} 18... Nc5 {[%clk 0:03:33.1]} 19. Rbc3 {[%clk 0:03:57.6]}
19... Rad8 {[%clk 0:03:27]} 20. Qc2 {[%clk 0:03:50.9]} 20... Nfe4 {[%clk
0:02:56.6]} 21. Nxe4 {[%clk 0:03:44.8]} 21... Nxe4 {[%clk 0:02:51.5]} 22. Rc7
{[%clk 0:03:38]} 22... Nd6 {[%clk 0:02:18.6]} 23. Rxa7 {[%clk 0:03:32.2]} 23...
Rc8 {[%clk 0:02:13.5]} 24. Rc7 {[%clk 0:03:26.7]} 24... Rxc7 {[%clk 0:02:02.9]}
25. Qxc7 {[%clk 0:03:24.7]} 25... Nb5 {[%clk 0:01:31.1]} 26. Qxb6 {[%clk
0:03:18.9]} 26... Rd8 {[%clk 0:01:28.5]} 27. h3 {[%clk 0:03:12]} 27... Nd6
{[%clk 0:01:21]} 28. Qxd8+ {[%clk 0:03:07.8]} 1-0

[Event "Live Chess"]
[Site "Chess.com"]
[Date "2023.05.20"]
[Round "-"]
[White "siddu198"]
[Black "weibs440"]
[Result "1-0"]
[WhiteElo "1643"]
[BlackElo "927"]
[TimeControl "300"]
[EndTime "14:07:05 PDT"]
[Termination "siddu198 won on time"]

1. e4 {[%clk 0:04:59]} 1... d6 {[%clk 0:04:58.7]} 2. d4 {[%clk 0:04:57.9]} 2...
Nf6 {[%clk 0:04:58.2]} 3. e5 {[%clk 0:04:57.1]} 3... dxe5 {[%clk 0:04:56.8]} 4.
dxe5 {[%clk 0:04:57]} 4... Qxd1+ {[%clk 0:04:55.5]} 5. Kxd1 {[%clk 0:04:56.9]}
5... Ng4 {[%clk 0:04:54.7]} 6. Be3 {[%clk 0:04:54.8]} 6... Nxe5 {[%clk
0:04:53.1]} 7. Nc3 {[%clk 0:04:53.3]} 7... Bf5 {[%clk 0:04:49.7]} 8. Nf3 {[%clk
0:04:50.7]} 8... Nxf3 {[%clk 0:04:46.9]} 9. gxf3 {[%clk 0:04:50.6]} 9... Nc6
{[%clk 0:04:40.8]} 10. Bd3 {[%clk 0:04:50.5]} 10... Bxd3 {[%clk 0:04:38.3]} 11.
cxd3 {[%clk 0:04:50.4]} 11... e6 {[%clk 0:04:29.1]} 12. Ke2 {[%clk 0:04:49.4]}
12... O-O-O {[%clk 0:04:26]} 13. a3 {[%clk 0:04:46.7]} 13... Ne5 {[%clk
0:04:19.8]} 14. d4 {[%clk 0:04:42.5]} 14... Nc4 {[%clk 0:04:16.7]} 15. b4 {[%clk
0:04:29.7]} 15... a6 {[%clk 0:03:52.7]} 16. Rhg1 {[%clk 0:04:17.9]} 16... g6
{[%clk 0:03:42.5]} 17. Bg5 {[%clk 0:04:10.7]} 17... Rd7 {[%clk 0:03:37.3]} 18.
Bf6 {[%clk 0:04:09.3]} 18... Rg8 {[%clk 0:03:34.6]} 19. h4 {[%clk 0:04:08.3]}
19... Bg7 {[%clk 0:03:25.8]} 20. Bxg7 {[%clk 0:03:55.8]} 20... Rxg7 {[%clk
0:03:25.7]} 21. h5 {[%clk 0:03:55]} 21... Rxd4 {[%clk 0:03:20.4]} 22. hxg6
{[%clk 0:03:53.4]} 22... hxg6 {[%clk 0:03:17.3]} 23. Rad1 {[%clk 0:03:41.8]}
23... Rxd1 {[%clk 0:03:08.1]} 24. Rxd1 {[%clk 0:03:41.7]} 24... Rg8 {[%clk
0:03:02.5]} 25. a4 {[%clk 0:03:40.4]} 25... Rd8 {[%clk 0:02:59.7]} 26. Rxd8+
{[%clk 0:03:34.4]} 26... Kxd8 {[%clk 0:02:59.6]} 27. Ne4 {[%clk 0:03:32.7]}
27... Ke7 {[%clk 0:02:55.4]} 28. Nc5 {[%clk 0:03:31]} 28... b6 {[%clk 0:02:50]}
29. Nxa6 {[%clk 0:03:29.6]} 29... Kd6 {[%clk 0:02:29.9]} 30. Kd3 {[%clk
0:03:04.9]} 30... Nb2+ {[%clk 0:02:27.6]} 31. Kc3 {[%clk 0:03:03.9]} 31... Nxa4+
{[%clk 0:02:26.4]} 32. Kc4 {[%clk 0:02:58.9]} 32... Nb2+ {[%clk 0:02:20.6]} 33.
Kb5 {[%clk 0:02:57.9]} 33... Nd1 {[%clk 0:02:13.5]} 34. Nb8 {[%clk 0:02:55.4]}
34... Nxf2 {[%clk 0:02:07.4]} 35. Ka6 {[%clk 0:02:54.7]} 35... f5 {[%clk
0:01:55.4]} 36. Kb7 {[%clk 0:02:52.5]} 36... e5 {[%clk 0:01:49.5]} 37. Na6
{[%clk 0:02:47.3]} 37... e4 {[%clk 0:01:46.6]} 38. fxe4 {[%clk 0:02:45.4]} 38...
fxe4 {[%clk 0:01:45.4]} 39. Nxc7 {[%clk 0:02:45]} 39... e3 {[%clk 0:01:41.1]}
40. Nb5+ {[%clk 0:02:44.5]} 40... Ke5 {[%clk 0:01:33.7]} 41. Nc3 {[%clk
0:02:40.7]} 41... Kd4 {[%clk 0:01:30.4]} 42. Ne2+ {[%clk 0:02:29.1]} 42... Kd3
{[%clk 0:01:25.7]} 43. Ng3 {[%clk 0:02:22.7]} 43... g5 {[%clk 0:01:21.4]} 44.
Kxb6 {[%clk 0:02:16.5]} 44... g4 {[%clk 0:01:19.9]} 45. b5 {[%clk 0:02:15.7]}
45... e2 {[%clk 0:01:18]} 46. Nxe2 {[%clk 0:02:14.3]} 46... Kxe2 {[%clk
0:01:17.2]} 47. Ka7 {[%clk 0:02:13.2]} 47... g3 {[%clk 0:01:11.6]} 48. b6 {[%clk
0:02:12.5]} 48... g2 {[%clk 0:01:09.5]} 49. b7 {[%clk 0:02:11.9]} 49... g1=Q
{[%clk 0:01:06.6]} 50. b8=Q {[%clk 0:02:10.9]} 50... Ne4+ {[%clk 0:01:04.6]} 51.
Kb7 {[%clk 0:02:06.9]} 51... Nd6+ {[%clk 0:00:54.7]} 52. Qxd6 {[%clk 0:02:04.7]}
52... Qb1+ {[%clk 0:00:49.3]} 53. Kc8 {[%clk 0:01:54.2]} 53... Qc1+ {[%clk
0:00:40.5]} 54. Kd8 {[%clk 0:01:53.1]} 54... Qg5+ {[%clk 0:00:36.1]} 55. Ke8
{[%clk 0:01:50.4]} 55... Qe3+ {[%clk 0:00:28.2]} 56. Kf7 {[%clk 0:01:48.8]}
56... Qf3+ {[%clk 0:00:24.2]} 57. Kg8 {[%clk 0:01:39.8]} 57... Qg4+ {[%clk
0:00:19.3]} 58. Kh8 {[%clk 0:01:37.4]} 58... Qh5+ {[%clk 0:00:14]} 59. Kg7
{[%clk 0:01:34.3]} 59... Qg5+ {[%clk 0:00:10.5]} 60. Kf7 {[%clk 0:01:27.6]}
60... Qf5+ {[%clk 0:00:09.2]} 61. Ke7 {[%clk 0:01:21.9]} 61... Qe4+ {[%clk
0:00:08.3]} 62. Kd8 {[%clk 0:01:20.5]} 62... Qh4+ {[%clk 0:00:04.9]} 63. Kc7
{[%clk 0:01:19.3]} 63... Qc4+ {[%clk 0:00:02.7]} 64. Kb6 {[%clk 0:01:17.7]}
64... Qb3+ {[%clk 0:00:01.2]} 65. Ka6 {[%clk 0:01:16.5]} 1-0